[Event "Sunway Sitges Chess Festival"]
[Date "2024.12.22"]
[White "Gorshtein, Ido"]
[Black "Vetokhin, Savva"]
[WhiteElo "2422"]
[BlackElo "2502"]
[Round "19.1"]
[Result "0-1"]
[TimeControl "40/5400+30:1800+30"]

1. c4 {[%clk 0:05:04]} 1... e6 {[%clk 0:05:06]} 2. Nf3 {[%clk 0:05:05]} 2... d5
{[%clk 0:05:08]} 3. g3 {[%clk 0:05:07]} 3... Nf6 {[%clk 0:05:10]} 4. Bg2 {[%clk
0:05:09]} 4... dxc4 {[%clk 0:05:12]} 5. Qa4+ {[%clk 0:05:11]} 5... Nbd7 {[%clk
0:05:14]} 6. Qxc4 {[%clk 0:05:12]} 6... a6 {[%clk 0:05:16]} 7. Qb3 {[%clk
0:05:13]} 7... c5 {[%clk 0:05:05]} 8. Nc3 {[%clk 0:05:11]} 8... Be7 {[%clk
0:05:05]} 9. O-O {[%clk 0:05:04]} 9... O-O {[%clk 0:05:07]} 10. a4 {[%clk
0:04:54]} 10... Rb8 {[%clk 0:04:54]} 11. a5 {[%clk 0:04:55]} 11... b5 {[%clk
0:04:52]} 12. axb6 {[%clk 0:04:55]} 12... Rxb6 {[%clk 0:04:40]} 13. Qc2 {[%clk
0:04:51]} 13... Bb7 {[%clk 0:04:39]} 14. d3 {[%clk 0:04:52]} 14... Nd5 {[%clk
0:04:40]} 15. Na4 {[%clk 0:04:26]} 15... Rc6 {[%clk 0:04:42]} 16. b3 {[%clk
0:04:24]} 16... Bf6 {[%clk 0:04:43]} 17. Bb2 {[%clk 0:04:25]} 17... Rc8 {[%clk
0:04:37]} 18. Rfc1 {[%clk 0:04:21]} 18... Qe7 {[%clk 0:04:22]} 19. Bxf6 {[%clk
0:04:20]} 19... N5xf6 {[%clk 0:04:24]} 20. Nb2 {[%clk 0:04:13]} 20... e5 {[%clk
0:04:19]} 21. Nc4 {[%clk 0:04:04]} 21... e4 {[%clk 0:04:13]} 22. dxe4 {[%clk
0:04:01]} 22... Bxe4 {[%clk 0:04:14]} 23. Qb2 {[%clk 0:03:58]} 23... Bb7 {[%clk
0:03:59]} 24. Rd1 {[%clk 0:03:59]} 24... Rb8 {[%clk 0:03:58]} 25. Nh4 {[%clk
0:03:16]} 25... Bxg2 {[%clk 0:03:53]} 26. Nxg2 {[%clk 0:03:17]} 26... Qe6 {[%clk
0:03:43]} 27. Nf4 {[%clk 0:03:15]} 27... Qxc4 {[%clk 0:03:45]} 28. Qxf6 {[%clk
0:03:12]} 28... Qxb3 {[%clk 0:03:20]} 29. Qxa6 {[%clk 0:03:04]} 29... Nf6 {[%clk
0:03:22]} 30. Rac1 {[%clk 0:02:59]} 30... Rfc8 {[%clk 0:03:17]} 31. Rd3 {[%clk
0:02:50]} 31... Qb2 {[%clk 0:02:58]} 32. Rdc3 {[%clk 0:02:43]} 32... Ra8 {[%clk
0:02:45]} 33. Qc4 {[%clk 0:02:17]} 33... Ra1 {[%clk 0:02:46]} 34. Rxa1 {[%clk
0:02:15]} 34... Qxa1+ {[%clk 0:02:47]} 35. Rc1 {[%clk 0:02:12]} 35... Qa8 {[%clk
0:02:46]} 36. f3 {[%clk 0:02:06]} 36... Qc6 {[%clk 0:02:45]} 37. e4 {[%clk
0:02:03]} 37... Qd6 {[%clk 0:02:44]} 38. Rc2 {[%clk 0:01:44]} 38... h6 {[%clk
0:02:33]} 39. Kg2 {[%clk 0:01:44]} 39... Nd7 {[%clk 0:02:17]} 40. Qd5 {[%clk
0:01:17]} 40... Qxd5 {[%clk 0:02:14]} 41. Nxd5 {[%clk 0:01:18]} 41... Kf8 {[%clk
0:02:11]} 42. f4 {[%clk 0:01:18]} 42... Ra8 {[%clk 0:02:06]} 43. e5 {[%clk
0:01:11]} 43... Ra4 {[%clk 0:02:01]} 44. Rb2 {[%clk 0:01:00]} 44... Rd4 {[%clk
0:02:01]} 45. Ne3 {[%clk 0:00:58]} 45... Rb4 {[%clk 0:01:55]} 46. Rc2 {[%clk
0:00:54]} 46... Rb3 {[%clk 0:01:46]} 47. Kf2 {[%clk 0:00:50]} 47... g6 {[%clk
0:01:38]} 48. Ra2 {[%clk 0:00:46]} 48... Ke7 {[%clk 0:01:20]} 49. Ra6 {[%clk
0:00:41]} 49... Rd3 {[%clk 0:01:16]} 50. Ke2 {[%clk 0:00:41]} 50... Rd4 {[%clk
0:01:18]} 51. Rc6 {[%clk 0:00:37]} 51... Ke8 {[%clk 0:00:59]} 52. h4 {[%clk
0:00:27]} 52... Ke7 {[%clk 0:01:00]} 53. h5 {[%clk 0:00:27]} 53... Nf8 {[%clk
0:00:43]} 54. hxg6 {[%clk 0:00:19]} 54... fxg6 {[%clk 0:00:45]} 55. f5 {[%clk
0:00:21]} 55... Re4 {[%clk 0:00:41]} 56. fxg6 {[%clk 0:00:12]} 56... Ne6 {[%clk
0:00:41]} 57. Ra6 {[%clk 0:00:07]} 57... Rxe5 {[%clk 0:00:41]} 58. Kf3 {[%clk
0:00:07]} 58... Rg5 {[%clk 0:00:39]} 59. g4 {[%clk 0:00:06]} 59... Rxg6 {[%clk
0:00:37]} 60. Nd5+ {[%clk 0:00:08]} 60... Kf7 {[%clk 0:00:30]} 61. Ra7+ {[%clk
0:00:10]} 61... Kf8 {[%clk 0:00:32]} 62. Ra8+ {[%clk 0:00:12]} 62... Kf7 {[%clk
0:00:34]} 63. Ra7+ {[%clk 0:00:14]} 63... Kf8 {[%clk 0:00:36]} 64. Ra6 {[%clk
0:00:16]} 64... Nd4+ {[%clk 0:00:38]} 0-1